[Event "*** Titled Tuesday 3|2 Blitz"]
[Site "Chess.com"]
[Date "2015.12.01"]
[Round "7"]
[White "MITerryble"]
[Black "Dlugy"]
[Result "0-1"]
[WhiteElo "2601"]
[BlackElo "2548"]
[TimeControl "180+2"]
[EndTime "18:31:36 PST"]
[Termination "Dlugy won by resignation"]

1. d4 {[%clk 0:03:01.9]} 1... Nf6 {[%clk 0:03:00.4]} 2. Nf3 {[%clk 0:03:02.9]}
2... g6 {[%clk 0:03:02]} 3. Bg5 {[%clk 0:03:03.6]} 3... Bg7 {[%clk 0:03:03.4]}
4. Nbd2 {[%clk 0:03:04.9]} 4... O-O {[%clk 0:03:04.9]} 5. c3 {[%clk 0:03:06.2]}
5... d6 {[%clk 0:03:06.2]} 6. e4 {[%clk 0:03:07.4]} 6... Nc6 {[%clk 0:03:04.1]}
7. d5 {[%clk 0:02:59.9]} 7... Nb8 {[%clk 0:03:04.8]} 8. Be2 {[%clk 0:02:56]}
8... h6 {[%clk 0:03:05.6]} 9. Bh4 {[%clk 0:02:54.9]} 9... e6 {[%clk 0:03:04.9]}
10. dxe6 {[%clk 0:02:54.3]} 10... Bxe6 {[%clk 0:03:05.7]} 11. Nd4 {[%clk
0:02:53.7]} 11... Bd7 {[%clk 0:03:05.2]} 12. O-O {[%clk 0:02:54.5]} 12... Nc6
{[%clk 0:03:06.2]} 13. Nxc6 {[%clk 0:02:48.4]} 13... Bxc6 {[%clk 0:03:07.4]} 14.
Bd3 {[%clk 0:02:44.2]} 14... Re8 {[%clk 0:03:02.4]} 15. Re1 {[%clk 0:02:44.9]}
15... Qd7 {[%clk 0:03:02]} 16. Qf3 {[%clk 0:02:30]} 16... Qg4 {[%clk 0:02:59.1]}
17. Qxg4 {[%clk 0:02:22.5]} 17... Nxg4 {[%clk 0:03:00.2]} 18. h3 {[%clk
0:02:23.9]} 18... Ne5 {[%clk 0:02:58.1]} 19. Bf1 {[%clk 0:02:24.4]} 19... Nd7
{[%clk 0:02:47.3]} 20. f3 {[%clk 0:02:24]} 20... d5 {[%clk 0:02:43.8]} 21. exd5
{[%clk 0:02:18.8]} 21... Bxd5 {[%clk 0:02:45.1]} 22. Bc4 {[%clk 0:02:20.1]}
22... Nb6 {[%clk 0:02:43.8]} 23. Bxd5 {[%clk 0:02:20.4]} 23... Nxd5 {[%clk
0:02:45.4]} 24. Bg3 {[%clk 0:02:15.2]} 24... Rad8 {[%clk 0:02:36.4]} 25. Nc4
{[%clk 0:02:03.1]} 25... Bf6 {[%clk 0:02:02.9]} 26. Rad1 {[%clk 0:01:33.7]}
26... Rxe1+ {[%clk 0:02:02.9]} 27. Bxe1 {[%clk 0:01:09.2]} 27... Nf4 {[%clk
0:01:57.8]} 28. Rxd8+ {[%clk 0:01:08.6]} 28... Bxd8 {[%clk 0:01:58.8]} 29. Bd2
{[%clk 0:01:07.3]} 29... Nd3 {[%clk 0:01:50.3]} 30. b3 {[%clk 0:00:50.7]} 30...
Bg5 {[%clk 0:01:39.2]} 31. Bxg5 {[%clk 0:00:44.9]} 31... hxg5 {[%clk 0:01:40.8]}
32. Nd2 {[%clk 0:00:39.4]} 32... f5 {[%clk 0:01:40.3]} 33. Kf1 {[%clk
0:00:37.9]} 33... Kf7 {[%clk 0:01:41.6]} 34. a3 {[%clk 0:00:37.5]} 34... Ke6
{[%clk 0:01:41.8]} 35. Ke2 {[%clk 0:00:36.9]} 35... Nf4+ {[%clk 0:01:42.7]} 36.
Kf2 {[%clk 0:00:38.2]} 36... b5 {[%clk 0:01:40.6]} 37. Nf1 {[%clk 0:00:19.4]}
37... Nd5 {[%clk 0:01:36.5]} 38. c4 {[%clk 0:00:18.2]} 38... bxc4 {[%clk
0:01:38.1]} 39. bxc4 {[%clk 0:00:20.1]} 39... Nb6 {[%clk 0:01:39.5]} 40. Nd2
{[%clk 0:00:20.7]} 40... Na4 {[%clk 0:01:29.3]} 41. Ke3 {[%clk 0:00:21.6]} 41...
Ke5 {[%clk 0:01:29.6]} 42. g3 {[%clk 0:00:21.5]} 42... f4+ {[%clk 0:01:30.5]}
43. gxf4+ {[%clk 0:00:22.2]} 43... gxf4+ {[%clk 0:01:32.1]} 44. Kd3 {[%clk
0:00:22.6]} 44... Nc5+ {[%clk 0:01:33.3]} 45. Kc3 {[%clk 0:00:23.7]} 45... a5
{[%clk 0:01:31.6]} 46. h4 {[%clk 0:00:22.9]} 46... Na4+ {[%clk 0:01:25.7]} 47.
Kd3 {[%clk 0:00:22.9]} 47... Nc5+ {[%clk 0:01:25]} 48. Kc3 {[%clk 0:00:24.1]}
48... Ne6 {[%clk 0:01:19.4]} 49. Nb3 {[%clk 0:00:14.1]} 49... a4 {[%clk
0:01:20.4]} 50. Nc1 {[%clk 0:00:11.6]} 50... Nc5 {[%clk 0:01:11.2]} 51. Nd3+
{[%clk 0:00:08.7]} 51... Nxd3 {[%clk 0:01:11.1]} 52. Kxd3 {[%clk 0:00:10.6]}
52... c5 {[%clk 0:00:55.9]} 53. Kc3 {[%clk 0:00:11.7]} 53... Kf6 {[%clk
0:00:51.8]} 54. Kd3 {[%clk 0:00:12.5]} 54... Kf5 {[%clk 0:00:53.1]} 55. Kd2
{[%clk 0:00:10.3]} 55... g5 {[%clk 0:00:50.1]} 56. hxg5 {[%clk 0:00:04.1]} 56...
Kxg5 {[%clk 0:00:51.3]} 57. Kd3 {[%clk 0:00:03.6]} 57... Kh4 {[%clk 0:00:50.6]}
58. Ke4 {[%clk 0:00:04.7]} 58... Kg3 {[%clk 0:00:52.2]} 59. Kd5 {[%clk
0:00:06.3]} 59... Kxf3 {[%clk 0:00:53.7]} 60. Kxc5 {[%clk 0:00:08.2]} 60... Ke4
{[%clk 0:00:53.2]} 61. Kb6 {[%clk 0:00:09.3]} 61... f3 {[%clk 0:00:54.6]} 62. c5
{[%clk 0:00:11.2]} 62... f2 {[%clk 0:00:56.2]} 63. c6 {[%clk 0:00:13.1]} 63...
f1=Q {[%clk 0:00:57.7]} 64. c7 {[%clk 0:00:15]} 64... Qf2+ {[%clk 0:00:57.8]}
65. Kb7 {[%clk 0:00:15.3]} 65... Qb2+ {[%clk 0:00:58.4]} 66. Ka8 {[%clk
0:00:16.3]} 66... Qc3 {[%clk 0:00:57.5]} 67. Kb8 {[%clk 0:00:16.8]} 67... Qb3+
{[%clk 0:00:58.7]} 68. Ka8 {[%clk 0:00:17.8]} 68... Qc4 {[%clk 0:00:58.3]} 69.
Kb8 {[%clk 0:00:18.3]} 69... Qb5+ {[%clk 0:00:59.1]} 70. Ka8 {[%clk 0:00:19.9]}
70... Qc6+ {[%clk 0:01:00.2]} 71. Kb8 {[%clk 0:00:21.2]} 71... Kd3 {[%clk
0:01:00]} 72. c8=Q {[%clk 0:00:22.1]} 72... Qxc8+ {[%clk 0:01:01]} 73. Kxc8
{[%clk 0:00:24]} 73... Kc3 {[%clk 0:01:02.7]} 74. Kc7 {[%clk 0:00:24.8]} 74...
Kb3 {[%clk 0:01:04.6]} 75. Kd6 {[%clk 0:00:21.2]} 75... Kxa3 {[%clk 0:01:06.5]}
0-1

[Event "*** Titled Tuesday 3|2 Blitz"]
[Site "Chess.com"]
[Date "2015.12.01"]
[Round "7"]
[White "Gabrielian_Artur"]
[Black "GianmarcoVaR"]
[Result "1/2-1/2"]
[WhiteElo "2435"]
[BlackElo "2307"]
[TimeControl "180+2"]
[EndTime "18:32:28 PST"]
[Termination "Game drawn - insufficient material"]

1. e4 {[%clk 0:03:01.1]} 1... c5 {[%clk 0:02:54.9]} 2. Nf3 {[%clk 0:03:01.8]}
2... d6 {[%clk 0:02:56.1]} 3. d4 {[%clk 0:03:03.1]} 3... cxd4 {[%clk 0:02:47.3]}
4. Nxd4 {[%clk 0:03:03.7]} 4... Nf6 {[%clk 0:02:42.5]} 5. Nc3 {[%clk 0:03:04.7]}
5... a6 {[%clk 0:02:43.8]} 6. Be2 {[%clk 0:03:04.9]} 6... e5 {[%clk 0:02:43.3]}
7. Nb3 {[%clk 0:03:05.8]} 7... Be7 {[%clk 0:02:44.8]} 8. O-O {[%clk 0:03:06.7]}
8... O-O {[%clk 0:02:45.7]} 9. Be3 {[%clk 0:03:07.4]} 9... Be6 {[%clk
0:02:37.9]} 10. a4 {[%clk 0:03:08]} 10... Nc6 {[%clk 0:02:28.8]} 11. a5 {[%clk
0:03:06]} 11... Nb4 {[%clk 0:02:05.9]} 12. Bb6 {[%clk 0:03:05.3]} 12... Qd7
{[%clk 0:01:46.5]} 13. Bf3 {[%clk 0:03:05.6]} 13... Rac8 {[%clk 0:01:39.7]} 14.
Re1 {[%clk 0:03:06.4]} 14... Bd8 {[%clk 0:01:35]} 15. Be3 {[%clk 0:02:57.6]}
15... Re8 {[%clk 0:01:24.5]} 16. h3 {[%clk 0:02:58.1]} 16... d5 {[%clk
0:01:18.8]} 17. Nc5 {[%clk 0:02:57.7]} 17... Qc6 {[%clk 0:01:15.8]} 18. exd5
{[%clk 0:02:46.8]} 18... Nbxd5 {[%clk 0:01:15.8]} 19. Nxe6 {[%clk 0:02:45.6]}
19... Nxc3 {[%clk 0:01:16.8]} 20. Bxc6 {[%clk 0:02:32.4]} 20... Nxd1 {[%clk
0:01:17.6]} 21. Bxb7 {[%clk 0:02:31.2]} 21... Nxe3 {[%clk 0:01:16.1]} 22. Bxc8
{[%clk 0:02:17.8]} 22... Nxc2 {[%clk 0:01:16]} 23. Nxd8 {[%clk 0:02:18.3]} 23...
Rxd8 {[%clk 0:01:15]} 24. Bxa6 {[%clk 0:02:11.7]} 24... Nxe1 {[%clk 0:01:16]}
25. Rxe1 {[%clk 0:02:12]} 25... Ra8 {[%clk 0:01:17.7]} 26. Bf1 {[%clk
0:02:05.2]} 26... Rxa5 {[%clk 0:01:17.5]} 27. b4 {[%clk 0:02:06.3]} 27... Rd5
{[%clk 0:01:16]} 28. b5 {[%clk 0:01:53.3]} 28... Nd7 {[%clk 0:01:06.1]} 29. Ra1
{[%clk 0:01:51.1]} 29... Kf8 {[%clk 0:01:06.5]} 30. g3 {[%clk 0:01:49.8]} 30...
Ke7 {[%clk 0:01:04.9]} 31. Ra7 {[%clk 0:01:48.7]} 31... Kd6 {[%clk 0:01:02.8]}
32. h4 {[%clk 0:01:49.9]} 32... g6 {[%clk 0:01:01.6]} 33. Kg2 {[%clk 0:01:43.4]}
33... f5 {[%clk 0:00:49]} 34. Ra6+ {[%clk 0:01:42]} 34... Kc7 {[%clk 0:00:48.3]}
35. h5 {[%clk 0:01:42.2]} 35... Rd6 {[%clk 0:00:46.8]} 36. Ra7+ {[%clk
0:01:22.7]} 36... Kb8 {[%clk 0:00:45.1]} 37. Ra4 {[%clk 0:01:15.3]} 37... gxh5
{[%clk 0:00:38.9]} 38. Be2 {[%clk 0:01:15.6]} 38... Rh6 {[%clk 0:00:36.6]} 39.
Kh3 {[%clk 0:01:11.6]} 39... Nf6 {[%clk 0:00:24]} 40. Kh4 {[%clk 0:01:03.2]}
40... Ne4 {[%clk 0:00:20.8]} 41. Bxh5 {[%clk 0:00:16.2]} 41... Nf6 {[%clk
0:00:16.7]} 42. Kg5 {[%clk 0:00:16.7]} 42... Rxh5+ {[%clk 0:00:16.5]} 43. Kxf6
{[%clk 0:00:18.1]} 43... f4 {[%clk 0:00:16.7]} 44. gxf4 {[%clk 0:00:14.3]} 44...
exf4 {[%clk 0:00:13.8]} 45. Rxf4 {[%clk 0:00:15]} 45... Rxb5 {[%clk 0:00:14.4]}
46. Rc4 {[%clk 0:00:16]} 46... h5 {[%clk 0:00:07.3]} 47. f4 {[%clk 0:00:16.5]}
47... h4 {[%clk 0:00:08.5]} 48. f5 {[%clk 0:00:17.9]} 48... h3 {[%clk
0:00:09.9]} 49. Rh4 {[%clk 0:00:16.4]} 49... Rb3 {[%clk 0:00:09.7]} 50. Kf7
{[%clk 0:00:15.2]} 50... Kc7 {[%clk 0:00:10.6]} 51. f6 {[%clk 0:00:16.7]} 51...
Kd6 {[%clk 0:00:11.8]} 52. Rd4+ {[%clk 0:00:15.8]} 52... Ke5 {[%clk 0:00:11.4]}
53. Rd2 {[%clk 0:00:16.2]} 53... Rf3 {[%clk 0:00:11.8]} 54. Re2+ {[%clk
0:00:16.6]} 54... Kd6 {[%clk 0:00:08]} 55. Kg7 {[%clk 0:00:17.1]} 55... Rg3+
{[%clk 0:00:09.1]} 56. Kf8 {[%clk 0:00:18]} 56... Rg2 {[%clk 0:00:09.7]} 57. Re3
{[%clk 0:00:17.2]} 57... h2 {[%clk 0:00:10.5]} 58. Rh3 {[%clk 0:00:18.3]} 58...
Rf2 {[%clk 0:00:11.2]} 59. f7 {[%clk 0:00:18.7]} 59... Ke6 {[%clk 0:00:10]} 60.
Rh6+ {[%clk 0:00:19.8]} 60... Rf6 {[%clk 0:00:09.9]} 61. Rxf6+ {[%clk 0:00:09]}
61... Kxf6 {[%clk 0:00:10.5]} 62. Ke8 {[%clk 0:00:10.3]} 62... h1=Q {[%clk
0:00:10.3]} 63. f8=Q+ {[%clk 0:00:11.7]} 63... Ke5 {[%clk 0:00:11.4]} 64. Qg7+
{[%clk 0:00:11.6]} 64... Kf4 {[%clk 0:00:09.3]} 65. Qf6+ {[%clk 0:00:12.7]}
65... Kg3 {[%clk 0:00:10.4]} 66. Qe5+ {[%clk 0:00:13.9]} 66... Kg2 {[%clk
0:00:11.1]} 67. Qe4+ {[%clk 0:00:14.9]} 67... Kg1 {[%clk 0:00:12.2]} 68. Qxh1+
{[%clk 0:00:15.7]} 68... Kxh1 {[%clk 0:00:09]} 1/2-1/2

[Event "*** Titled Tuesday 3|2 Blitz"]
[Site "Chess.com"]
[Date "2015.12.01"]
[Round "7"]
[White "Cararay"]
[Black "ntmh281"]
[Result "1/2-1/2"]
[WhiteElo "2219"]
[BlackElo "2121"]
[TimeControl "180+2"]
[EndTime "18:34:42 PST"]
[Termination "Game drawn by repetition"]

1. c4 {[%clk 0:02:57.4]} 1... e6 {[%clk 0:03:00.7]} 2. Nc3 {[%clk 0:02:57.9]}
2... d5 {[%clk 0:03:02.6]} 3. cxd5 {[%clk 0:02:58.5]} 3... exd5 {[%clk
0:03:03.4]} 4. d4 {[%clk 0:02:59.8]} 4... c6 {[%clk 0:03:01.6]} 5. Nf3 {[%clk
0:03:00.7]} 5... Bf5 {[%clk 0:03:00.4]} 6. Bg5 {[%clk 0:03:00.7]} 6... Qc7
{[%clk 0:02:54.1]} 7. e3 {[%clk 0:03:01]} 7... Nd7 {[%clk 0:02:54.4]} 8. Bd3
{[%clk 0:03:01.5]} 8... Bg4 {[%clk 0:02:53.3]} 9. Bh4 {[%clk 0:03:01.8]} 9...
Bd6 {[%clk 0:02:52.3]} 10. Bg3 {[%clk 0:03:02.1]} 10... Ngf6 {[%clk 0:02:52.1]}
11. Qc2 {[%clk 0:03:01.2]} 11... Bxg3 {[%clk 0:02:41.8]} 12. hxg3 {[%clk
0:03:01.5]} 12... h6 {[%clk 0:02:41.8]} 13. O-O {[%clk 0:03:01.6]} 13... O-O
{[%clk 0:02:41.5]} 14. b4 {[%clk 0:03:02.1]} 14... a6 {[%clk 0:02:39.7]} 15. a4
{[%clk 0:03:02.6]} 15... Rfc8 {[%clk 0:02:31.2]} 16. a5 {[%clk 0:03:02.2]} 16...
Qd6 {[%clk 0:02:30.2]} 17. Rab1 {[%clk 0:03:02.3]} 17... Re8 {[%clk 0:02:28.7]}
18. Rfe1 {[%clk 0:03:01.6]} 18... Re7 {[%clk 0:02:21.7]} 19. Na4 {[%clk
0:03:01.9]} 19... Rae8 {[%clk 0:02:21.7]} 20. Nc5 {[%clk 0:03:02.2]} 20... Nf8
{[%clk 0:02:08.8]} 21. Ne5 {[%clk 0:03:00.2]} 21... Bc8 {[%clk 0:02:09]} 22. Bf5
{[%clk 0:02:58.2]} 22... N8d7 {[%clk 0:01:51.8]} 23. Bxd7 {[%clk 0:02:53.8]}
23... Nxd7 {[%clk 0:01:51.8]} 24. Nexd7 {[%clk 0:02:53.9]} 24... Bxd7 {[%clk
0:01:52.2]} 25. Nxb7 {[%clk 0:02:52.1]} 25... Qf6 {[%clk 0:01:52]} 26. Qc5
{[%clk 0:02:34.1]} 26... Bf5 {[%clk 0:01:38.2]} 27. Nd6 {[%clk 0:02:33.7]} 27...
Bxb1 {[%clk 0:01:26.9]} 28. Nxe8 {[%clk 0:02:33.8]} 28... Rxe8 {[%clk
0:01:27.5]} 29. Rxb1 {[%clk 0:02:34.2]} 29... Qg6 {[%clk 0:01:20.4]} 30. Rc1
{[%clk 0:02:33]} 30... Rb8 {[%clk 0:01:20.5]} 31. Qa7 {[%clk 0:02:28.5]} 31...
Rxb4 {[%clk 0:01:20.5]} 32. Qxa6 {[%clk 0:02:28.6]} 32... Ra4 {[%clk 0:01:13.9]}
33. Qb6 {[%clk 0:02:12.2]} 33... Ra2 {[%clk 0:01:09.6]} 34. a6 {[%clk
0:02:08.8]} 34... Kh7 {[%clk 0:01:05.2]} 35. a7 {[%clk 0:02:08.5]} 35... Qf5
{[%clk 0:01:01.2]} 36. Rf1 {[%clk 0:02:08.2]} 36... Qc8 {[%clk 0:00:59.3]} 37.
Qb8 {[%clk 0:02:08.2]} 37... Qa6 {[%clk 0:00:58.5]} 38. Qc7 {[%clk 0:01:59.9]}
38... Qxa7 {[%clk 0:00:56.5]} 39. Qxc6 {[%clk 0:01:59.7]} 39... Qa5 {[%clk
0:00:55.7]} 40. g4 {[%clk 0:01:53.5]} 40... g6 {[%clk 0:00:49.1]} 41. Qd7 {[%clk
0:01:51.1]} 41... Kg7 {[%clk 0:00:49.1]} 42. Rb1 {[%clk 0:01:47.8]} 42... Qd2
{[%clk 0:00:46.9]} 43. Rf1 {[%clk 0:01:39.1]} 43... Qa5 {[%clk 0:00:47.3]} 44.
Qd6 {[%clk 0:01:38.5]} 44... Qb5 {[%clk 0:00:45.7]} 45. Qe5+ {[%clk 0:01:35.1]}
45... Kh7 {[%clk 0:00:45.6]} 46. Qf6 {[%clk 0:01:31.8]} 46... Qd7 {[%clk
0:00:45.3]} 47. Rb1 {[%clk 0:01:28.9]} 47... Ra7 {[%clk 0:00:45.3]} 48. Rb8
{[%clk 0:01:08.6]} 48... Ra1+ {[%clk 0:00:44.9]} 49. Kh2 {[%clk 0:01:09.2]}
49... Qc7+ {[%clk 0:00:45]} 50. Qe5 {[%clk 0:01:09.4]} 50... Qxe5+ {[%clk
0:00:45.6]} 51. dxe5 {[%clk 0:01:10]} 51... Rd1 {[%clk 0:00:43]} 52. Rb7 {[%clk
0:01:08]} 52... Kg8 {[%clk 0:00:43.2]} 53. Kg3 {[%clk 0:01:07.6]} 53... Rd2
{[%clk 0:00:42.6]} 54. Rd7 {[%clk 0:01:05.2]} 54... g5 {[%clk 0:00:41.5]} 55.
Kf3 {[%clk 0:01:00.6]} 55... Kf8 {[%clk 0:00:41]} 56. Kg3 {[%clk 0:00:52.8]}
56... Kg8 {[%clk 0:00:41.4]} 57. f3 {[%clk 0:00:47.3]} 57... Kf8 {[%clk
0:00:37.1]} 58. e4 {[%clk 0:00:40.6]} 58... d4 {[%clk 0:00:37.3]} 59. Rd6 {[%clk
0:00:36.9]} 59... Kg7 {[%clk 0:00:37.6]} 60. e6 {[%clk 0:00:36.8]} 60... fxe6
{[%clk 0:00:29.8]} 61. Rxe6 {[%clk 0:00:37.2]} 61... d3 {[%clk 0:00:29.1]} 62.
Rd6 {[%clk 0:00:37.5]} 62... Rd1 {[%clk 0:00:28.1]} 63. Kf2 {[%clk 0:00:37.5]}
63... d2 {[%clk 0:00:27.3]} 64. Ke3 {[%clk 0:00:36.8]} 64... Re1+ {[%clk
0:00:21.9]} 65. Kxd2 {[%clk 0:00:37.1]} 65... Rg1 {[%clk 0:00:22.6]} 66. e5
{[%clk 0:00:31.2]} 66... Rxg2+ {[%clk 0:00:23.1]} 67. Ke3 {[%clk 0:00:31.7]}
67... Rh2 {[%clk 0:00:20.1]} 68. Ke4 {[%clk 0:00:31.7]} 68... Rf2 {[%clk
0:00:17]} 69. Rd7+ {[%clk 0:00:30.1]} 69... Kg6 {[%clk 0:00:17.2]} 70. Rd6+
{[%clk 0:00:30.2]} 70... Kg7 {[%clk 0:00:17.7]} 71. Rf6 {[%clk 0:00:26.9]} 71...
Re2+ {[%clk 0:00:18]} 72. Kf5 {[%clk 0:00:26.5]} 72... Re3 {[%clk 0:00:18.6]}
73. Ke6 {[%clk 0:00:26.8]} 73... Ra3 {[%clk 0:00:17.1]} 74. Rf5 {[%clk
0:00:22.2]} 74... Ra6+ {[%clk 0:00:15]} 75. Kd5 {[%clk 0:00:22.1]} 75... Ra5+
{[%clk 0:00:15.5]} 76. Kd6 {[%clk 0:00:22.5]} 76... Ra6+ {[%clk 0:00:16.3]} 77.
Kc5 {[%clk 0:00:22.7]} 77... Ra5+ {[%clk 0:00:16.6]} 78. Kb6 {[%clk 0:00:22.6]}
78... Ra1 {[%clk 0:00:16.9]} 79. Kc7 {[%clk 0:00:21.1]} 79... Ra7+ {[%clk
0:00:17.3]} 80. Kd8 {[%clk 0:00:20.2]} 80... Ra8+ {[%clk 0:00:18.2]} 81. Ke7
{[%clk 0:00:20.5]} 81... Ra7+ {[%clk 0:00:19.4]} 82. Ke6 {[%clk 0:00:21.1]}
82... Ra6+ {[%clk 0:00:20.6]} 83. Kd5 {[%clk 0:00:21.6]} 83... Ra5+ {[%clk
0:00:21.9]} 84. Ke4 {[%clk 0:00:22.7]} 84... Ra4+ {[%clk 0:00:23.1]} 85. Ke3
{[%clk 0:00:23.6]} 85... Ra3+ {[%clk 0:00:24.3]} 86. Kf2 {[%clk 0:00:24.1]}
86... Ra2+ {[%clk 0:00:25.6]} 87. Kg3 {[%clk 0:00:24.7]} 87... Re2 {[%clk
0:00:26.5]} 88. Kh3 {[%clk 0:00:23]} 88... Kg8 {[%clk 0:00:24.4]} 89. Kg3 {[%clk
0:00:22.6]} 89... Kg7 {[%clk 0:00:25.2]} 90. Kh3 {[%clk 0:00:20.7]} 90... Kg8
{[%clk 0:00:21.4]} 91. Kg3 {[%clk 0:00:21.3]} 91... Kg7 {[%clk 0:00:22.6]} 92.
Kh3 {[%clk 0:00:22]} 1/2-1/2

[Event "*** Titled Tuesday 3|2 Blitz"]
[Site "Chess.com"]
[Date "2015.12.01"]
[Round "8"]
[White "Viaje"]
[Black "chessbia"]
[Result "0-1"]
[WhiteElo "2167"]
[BlackElo "2081"]
[TimeControl "180+2"]
[EndTime "18:40:34 PST"]
[Termination "chessbia won by resignation"]

1. d4 {[%clk 0:03:01.9]} 1... d5 {[%clk 0:03:00.3]} 2. c4 {[%clk 0:03:02.2]}
2... c6 {[%clk 0:03:00.8]} 3. Nf3 {[%clk 0:03:02.5]} 3... Nf6 {[%clk 0:03:01.9]}
4. Qc2 {[%clk 0:03:04]} 4... dxc4 {[%clk 0:02:52.4]} 5. e4 {[%clk 0:03:05.2]}
5... b5 {[%clk 0:02:52.1]} 6. b3 {[%clk 0:03:06.7]} 6... cxb3 {[%clk 0:02:49.7]}
7. axb3 {[%clk 0:03:08.6]} 7... e6 {[%clk 0:02:48.9]} 8. Bd2 {[%clk 0:03:08.1]}
8... Be7 {[%clk 0:02:48.1]} 9. Ba5 {[%clk 0:03:07.7]} 9... Qd7 {[%clk
0:02:45.6]} 10. Nbd2 {[%clk 0:03:06.5]} 10... O-O {[%clk 0:02:42.8]} 11. Bd3
{[%clk 0:03:05.7]} 11... Bd8 {[%clk 0:02:41.8]} 12. e5 {[%clk 0:03:05.2]} 12...
Nd5 {[%clk 0:02:41]} 13. Bxh7+ {[%clk 0:03:05.3]} 13... Kh8 {[%clk 0:02:41.9]}
14. h4 {[%clk 0:02:59.1]} 14... Bxa5 {[%clk 0:02:40.4]} 15. Rxa5 {[%clk
0:02:58.5]} 15... Na6 {[%clk 0:02:41.2]} 16. h5 {[%clk 0:02:58.7]} 16... Nab4
{[%clk 0:02:41.5]} 17. Qb1 {[%clk 0:02:58.8]} 17... Nc3 {[%clk 0:02:41]} 18. Qb2
{[%clk 0:02:52.6]} 18... Nbd5 {[%clk 0:02:30.2]} 19. Bd3 {[%clk 0:02:45]} 19...
b4 {[%clk 0:02:26.3]} 20. h6 {[%clk 0:02:38.3]} 20... g6 {[%clk 0:02:26.3]} 21.
Nc4 {[%clk 0:02:33.3]} 21... Nf4 {[%clk 0:02:23.3]} 22. Bf1 {[%clk 0:02:26.9]}
22... Bb7 {[%clk 0:02:11.8]} 23. Qd2 {[%clk 0:02:27]} 23... Nfd5 {[%clk
0:02:07.7]} 24. Nd6 {[%clk 0:02:21.9]} 24... Ne4 {[%clk 0:01:50.2]} 25. Qc2
{[%clk 0:02:10.7]} 25... Nxd6 {[%clk 0:01:49.6]} 26. exd6 {[%clk 0:02:06.9]}
26... Qxd6 {[%clk 0:01:50.1]} 27. Ne5 {[%clk 0:02:07.1]} 27... Kh7 {[%clk
0:01:46.6]} 28. Bd3 {[%clk 0:02:03]} 28... Nf4 {[%clk 0:01:45.3]} 29. Ng4 {[%clk
0:01:59.4]} 29... Qxd4 {[%clk 0:01:32.8]} 30. Bf1 {[%clk 0:01:54]} 30... c5
{[%clk 0:01:27.2]} 31. Rxc5 {[%clk 0:01:52.7]} 31... Bxg2 {[%clk 0:01:26.4]} 32.
Rc4 {[%clk 0:01:51.2]} 32... Qa1+ {[%clk 0:01:23.4]} 33. Kd2 {[%clk 0:01:50.1]}
33... Bxh1 {[%clk 0:01:18.3]} 0-1

[Event "*** Titled Tuesday 3|2 Blitz"]
[Site "Chess.com"]
[Date "2015.12.01"]
[Round "8"]
[White "gmjoey1"]
[Black "HansCoolNiemann"]
[Result "1-0"]
[WhiteElo "2427"]
[BlackElo "2195"]
[TimeControl "180+2"]
[EndTime "18:40:47 PST"]
[Termination "gmjoey1 won by resignation"]

1. e4 {[%clk 0:03:01.9]} 1... e6 {[%clk 0:02:59.4]} 2. d4 {[%clk 0:03:01.9]}
2... d5 {[%clk 0:03:00.1]} 3. Nc3 {[%clk 0:03:02.8]} 3... Nf6 {[%clk 0:03:01.2]}
4. Bg5 {[%clk 0:03:00.4]} 4... dxe4 {[%clk 0:02:58.8]} 5. Nxe4 {[%clk
0:02:56.1]} 5... Be7 {[%clk 0:02:59]} 6. Bxf6 {[%clk 0:02:54.1]} 6... gxf6
{[%clk 0:03:00.9]} 7. Nf3 {[%clk 0:02:50.8]} 7... f5 {[%clk 0:02:59.7]} 8. Ng3
{[%clk 0:02:51.4]} 8... c5 {[%clk 0:02:56.8]} 9. Bb5+ {[%clk 0:02:50.2]} 9...
Nc6 {[%clk 0:02:57.6]} 10. O-O {[%clk 0:02:49.6]} 10... Bd7 {[%clk 0:02:53.8]}
11. d5 {[%clk 0:02:48]} 11... exd5 {[%clk 0:02:47.4]} 12. Qxd5 {[%clk
0:02:41.4]} 12... a6 {[%clk 0:02:42.1]} 13. Bxc6 {[%clk 0:02:38.4]} 13... bxc6
{[%clk 0:02:38.1]} 14. Qe5 {[%clk 0:02:34.7]} 14... f6 {[%clk 0:02:35.2]} 15.
Qf4 {[%clk 0:02:29]} 15... Qb8 {[%clk 0:02:25.6]} 16. Qh4 {[%clk 0:02:20.3]}
16... Qxb2 {[%clk 0:02:23]} 17. Rfe1 {[%clk 0:02:14.5]} 17... O-O-O {[%clk
0:02:19.9]} 18. Rab1 {[%clk 0:02:12.7]} 18... Qxc2 {[%clk 0:02:16.5]} 19. Qf4
{[%clk 0:02:07.9]} 19... Be6 {[%clk 0:02:02.6]} 20. Rb8+ {[%clk 0:01:56]} 20...
Kd7 {[%clk 0:02:02.7]} 21. Rb7+ {[%clk 0:01:54.7]} 21... Ke8 {[%clk 0:02:02.2]}
22. Rxe6 {[%clk 0:01:47.7]} 22... Rd1+ {[%clk 0:02:01]} 23. Ne1 {[%clk
0:01:42.8]} 23... Kf8 {[%clk 0:01:27.9]} 24. Qh6+ {[%clk 0:01:34.4]} 24... Ke8
{[%clk 0:01:26.2]} 25. Rexe7+ {[%clk 0:01:26.7]} 25... Kd8 {[%clk 0:01:25.8]}
26. Qxf6 {[%clk 0:01:22.7]} 26... Rxe1+ {[%clk 0:01:16.6]} 27. Rxe1+ {[%clk
0:01:21.5]} 27... Kc8 {[%clk 0:01:18.5]} 28. Qg7 {[%clk 0:01:20.6]} 1-0

[Event "*** Titled Tuesday 3|2 Blitz"]
[Site "Chess.com"]
[Date "2015.12.01"]
[Round "8"]
[White "ChadaevNikolay"]
[Black "jcibarra"]
[Result "0-1"]
[WhiteElo "2526"]
[BlackElo "2518"]
[TimeControl "180+2"]
[EndTime "18:41:48 PST"]
[Termination "jcibarra won on time"]

1. e4 {[%clk 0:03:01.9]} 1... c5 {[%clk 0:03:00.3]} 2. Nf3 {[%clk 0:03:01.9]}
2... Nf6 {[%clk 0:03:00.4]} 3. e5 {[%clk 0:03:01.5]} 3... Nd5 {[%clk 0:03:01.6]}
4. Nc3 {[%clk 0:03:03.1]} 4... e6 {[%clk 0:03:02.6]} 5. Nxd5 {[%clk 0:02:59.9]}
5... exd5 {[%clk 0:03:04.5]} 6. d4 {[%clk 0:03:00.8]} 6... Nc6 {[%clk
0:03:06.1]} 7. dxc5 {[%clk 0:02:53.9]} 7... Bxc5 {[%clk 0:03:08]} 8. Bd3 {[%clk
0:02:54.5]} 8... d6 {[%clk 0:03:06.2]} 9. exd6 {[%clk 0:02:54.2]} 9... O-O
{[%clk 0:03:07.8]} 10. O-O {[%clk 0:02:53.7]} 10... Qxd6 {[%clk 0:03:02.1]} 11.
h3 {[%clk 0:02:49.3]} 11... h6 {[%clk 0:02:41]} 12. Re1 {[%clk 0:02:37.4]} 12...
Bxh3 {[%clk 0:02:36.8]} 13. gxh3 {[%clk 0:02:33.6]} 13... Qg3+ {[%clk
0:02:36.9]} 14. Kh1 {[%clk 0:02:34.4]} 14... Bxf2 {[%clk 0:02:32.7]} 15. Rf1
{[%clk 0:02:35.3]} 15... Qxh3+ {[%clk 0:02:29.7]} 16. Nh2 {[%clk 0:02:34.8]}
16... Bg3 {[%clk 0:02:27.7]} 17. Qe2 {[%clk 0:02:34.8]} 17... Ne5 {[%clk
0:02:18.5]} 18. Qg2 {[%clk 0:02:35.1]} 18... Qh4 {[%clk 0:02:15.8]} 19. Be2
{[%clk 0:02:19.2]} 19... f5 {[%clk 0:02:09]} 20. Qxd5+ {[%clk 0:02:12.2]} 20...
Kh8 {[%clk 0:02:09.8]} 21. Qg2 {[%clk 0:02:12.2]} 21... f4 {[%clk 0:02:03.3]}
22. Kg1 {[%clk 0:02:05.4]} 22... Rad8 {[%clk 0:01:57.9]} 23. Nf3 {[%clk
0:01:58.2]} 23... Qf6 {[%clk 0:01:55.6]} 24. Nxe5 {[%clk 0:01:44.5]} 24... Qxe5
{[%clk 0:01:55.8]} 25. Bd3 {[%clk 0:01:43.9]} 25... Qc5+ {[%clk 0:01:28.2]} 26.
Kh1 {[%clk 0:01:41.7]} 26... Rd5 {[%clk 0:01:29.1]} 27. Qxg3 {[%clk 0:01:37.8]}
27... Rh5+ {[%clk 0:01:28.3]} 28. Kg2 {[%clk 0:01:38.2]} 28... fxg3 {[%clk
0:01:28.6]} 0-1